{"text_format":"1","workbook":"xlsx","n_sheets":5,"sheets":["Page 1","Page 2","Mesures des Voiles","LEXIQUE 2016","Auxiliaries"],"not_rendered":{"charts":0,"images":9,"macros":1,"external_links":1,"defined_names":26,"comments":2,"pivot_tables":0},"unopened":[],"bounds":{"document_bytes":16777216,"sheet_cells":100000,"rows_first":2000,"rows_last":500,"rows_between":2000,"halvings":0,"cell_chars":16384,"cell_head_chars":4096},"cells_cut":0,"cells_raw":0,"read":"whole","date_system":"1900"}

{"sheet":"Page 1","index":0,"n_rows":64,"n_cols":23,"rows_kept":64,"cut":false,"hidden":false,"merged":[[41,1,41,15],[41,17,41,22],[42,18,42,21],[49,3,49,14],[34,4,34,8],[38,4,38,8],[32,13,33,14],[36,11,36,23],[38,11,38,23],[36,4,36,6],[34,11,34,23],[32,11,33,12],[1,20,2,24],[27,4,27,13],[4,7,6,23],[7,7,8,23],[29,4,29,10],[25,1,25,24],[21,3,21,5],[19,18,20,18],[18,12,18,13],[9,7,9,21],[10,7,10,21],[29,15,29,17],[11,7,12,21],[27,18,27,21],[63,19,63,21],[46,3,46,14],[47,3,47,14],[48,3,48,14],[54,1,54,9],[57,19,57,21],[59,19,59,21],[58,19,58,21],[60,19,60,21],[50,3,50,14],[51,3,51,14]]}
[]
[null,null,null,null,null,null,null,null,null,null,null,null,null,null,null,null,null,null,null,null,16]
[]
[]
[null,null,null,null,null,null,null,"FORMULAIRE de RENOUVELLEMENT"]
[]
[]
[null,null,null,null,null,null,null,"Certificat O.R.C Club  /  Contrat de jauge OSIRIS                    -   2 0 1 6    -"]
[null,null,null,null,null,null,null,null,null,null,null,null,null,null,3]
[null,null,null,null,null,null,null,"Formulaire disponible sur le site: "]
[null,null,null,null,null,null,null," http://www.ffvoile.fr/ffv/web/pratique/habitable/OSIRIS/formulaires.aspx"]
[null,null,null,null,null,null,null,"Les ajustements des calculs de certains paramètres du VPP de l'ORC entraînent le renouvellement de tous les certificats à partir du 08 Février 2016."]
[]
[]
[]
[null,null,null,null,null,null,null,null,null,null,null,null,"Longueur de Coque HT =",null,null,null,null,null,null,null,"m"]
[]
[null,null,null,null,null,null,null,null,null,null,null,null,null,null,null,null,"[ Indique le Tarif en Page 2 ]"]
[null,null,null,null,null,null,null,null,null,null,null,null,{"$f":"'Page 2'!O23","v":""},null," Euros",null,null,"Chèque ci-joint :",null,null,null,false,{"$f":"ISNUMBER(S16)","v":false}]
[]
[]
[null,null,null,"luc.gellusseau@ffvoile.fr"]
[]
[]
[]
[null,"IDENTIFICATION"]
[]
[null,null,null,"NOM du Bateau :",null,null,null,null,null,null,null,null,null,null,null,null,null,"N° de Voile :"]
[]
[null,null,null,"Nom de la Série :",null,null,null,null,null,null,null,null,null,null,"Particularités :"]
[]
[]
[null,null,null,"Propriétaire :",null,null,null,null,null,null,null,"Adresse :"]
[]
[null,null,null,"NOM :"]
[]
[null,null,null,"Prénom :"]
[]
[null,null,null,"E-mail :"]
[]
[]
[null,"MODIFICATION(S)  ou  Pas de modification",null,null,null,null,null,null,null,null,null,null,null,null,null,null,null,"   RECAPITULATIF:"]
[null,null,null,null,null,null,null,null,null,null,null,null,null,null,null,null,null,null,"(Obligatoire)"]
[null,null,null,null,"Masse d' Equipage =",null,null,null,"Kg"]
[]
[]
[]
[]
[]
[]
[]
[]
[]
[]
[null,"RECAPITULATIF (facultatif) :"]
[null,null,null,null,null,null,null,null,"HLU",null,null,null,"HLP"]
[null,null,null,null,null,null,"Plus Grand Génois / Foc) :",null,null,null,"m",null,null,null,"m"]
[null,null,null,null,null,null,null,null,"SLU",null,null,null,"SLE",null,null,null,"SHW",null,null,"SFL"]
[null,null,null,null,null,null,"Plus Grand Symétrique :",null,null,null,"m",null,null,null,"m",null,null,null,"m",null,null,null,"m"]
[null,null,null,null,null,null,null,null,"SLU",null,null,null,"SLE",null,null,null,"SHW",null,null,"SFL"]
[null,null,null,null,null,null,"Plus Grand Asymétrique :",null,null,null,"m",null,null,null,"m",null,null,null,"m",null,null,null,"m"]
[]
[]
[null,null,null,null,null,null,null,null,null,null,"SPL =",null,null,null,"m",null,null,null,"TPS =",null,null,null,"m"]

{"sheet":"Page 2","index":1,"n_rows":55,"n_cols":20,"rows_kept":55,"cut":false,"hidden":false,"merged":[[4,8,4,16],[32,2,32,21],[30,1,31,5],[57,3,57,20],[47,1,48,22],[54,5,54,9],[50,11,53,20],[50,1,50,4],[50,5,50,9],[52,5,52,7],[43,2,43,21],[39,2,39,21],[5,8,5,16],[26,1,26,20],[27,1,27,20],[35,13,35,20],[6,8,6,16],[36,13,36,20],[38,2,38,5],[40,2,41,21],[42,2,42,21],[28,1,28,20]]}
[]
[]
[]
[]
[null,null,null,null,null,null,null,null,"-   TARIFS  2016   -"]
[null,null,null,null,null,null,null,null,"(Renouvellement uniquement)"]
[null,null,null,null,null,null,null,null,"Certificat O.R.C Club  /  Contrat de jauge OSIRIS"]
[]
[]
[]
[null,null,null,null,null,null,"De",null,5,"m","à",7.9989999999999997,"m",null,{"$f":"Auxiliaries!E4","v":43},null,"Euros",null,null,{"$f":"IF(AND(I$23>=I11,I$23<L11),1,0)","v":0}]
[]
[null,null,null,null,null,null,"De",null,8,"m","à",9.9990000000000006,"m",null,{"$f":"Auxiliaries!E5","v":51},null,"Euros",null,null,{"$f":"IF(AND(I$23>=I13,I$23<L13),1,0)","v":0}]
[]
[null,null,null,null,null,null,"De",null,10,"m","à",11.999000000000001,"m",null,{"$f":"Auxiliaries!E6","v":66},null,"Euros",null,null,{"$f":"IF(AND(I$23>=I15,I$23<L15),1,0)","v":0}]
[]
[null,null,null,null,null,null,"De",null,12,"m","à",14.999000000000001,"m",null,{"$f":"Auxiliaries!E7","v":90},null,"Euros",null,null,{"$f":"IF(AND(I$23>=I17,I$23<L17),1,0)","v":0}]
[]
[null,null,null,null,null,null,"De",null,15,"m"," et plus",null,null,null,{"$f":"Auxiliaries!E8","v":122},null,"Euros",null,null,{"$f":"IF(AND(I$23>=I19,I$23<L19),1,0)","v":0}]
[]
[]
[]
[null,null,null,null,null,null,null,null,{"$f":"IF('Page 1'!S16=\"\",\"\",'Page 1'!S16)","v":""},"m",null,null,null,null,{"$f":"IF(I23=\"\",\"\",IF(T11=1,O11,IF(T13=1,O13,IF(T15=1,O15,IF(T17=1,O17,O19)))))","v":""},null,"Euros"]
[]
[]
[]
[null,"Les certificats 2016 pourront commencer à être édités à partir du 08 Février 2016."]
[null,"Les formulaires sont téléchargeables à partir du site :"]
[null,"  http://www.ffvoile.fr/ffv/web/pratique/habitable/OSIRIS/formulaires.aspx"]
[]
[null," Rappels Importants :"]
[]
[null,null,"Un emmagasineur n'est pas un enrouleur. Quand on déclare un foc à enrouleur, cela implique qu'il ne peut y avoir à bord d'autres focs que le foc de gros temps (RSO) et le tourmentin."]
[]
[]
[null,null,null,"Voiles Plates  (Génois / Focs/ Code 0 / Gennaker):",null,null,null,null,null,null,null,null,null,"Largeur à Mi-hauteur  <  0.75 *  Bordure"]
[null,null,null,"Voiles Creuses (Spinnakers):",null,null,null,null,null,null,null,null,null,"Largeur à Mi-hauteur  ≥   0.75 * Bordure"]
[]
[null,null,"Conséquences:"]
[null,null,"Les voiles de type Code 0 et Gennaker doivent être mesurés comme des génois."]
[null,null,"Les dimensions du Code 0 et du Gennaker doivent impérativement être déclarées en utilisant le formulaire de mesures des voiles."]
[]
[null,null,"TOUTES LES MODIFICATIONS DE MESURES (en particulier celles des voiles) REMPLACENT et ANNULENT LES PRECEDENTES."]
[null,null,"Pour toutes modifications concernant les voiles, contacter votre Mesureur et joindre sa feuille de mesures."]
[null,null,null,null,null,"http://www.ffvoile.fr/ffv/web/pratique/habitable/OSIRIS/Liste_Delegues.aspx"]
[]
[]
[null,"J'atteste avoir déclaré toutes les modifications qui ont été apportées au bateau  (Coque, appendices, gréement, voiles et équipements). "]
[]
[]
[null,"PORT d'Attache :",null,null,null,null,null,null,null,null,null,"Je certifie sur l'honneur l'exactitude de mes déclarations et je reconnais mes responsabilités à l'égard de la jauge, en sachant que toute inexactitude pourra être soumise à réclamation."]
[]
[null,null,null,null,"Le :"]
[]
[null,null,null,null,"Le Déclarant :",null,null,null,null,null,null,"Le propriétaire   (ou son représentant)"]

{"sheet":"Mesures des Voiles","index":2,"n_rows":127,"n_cols":27,"rows_kept":127,"cut":false,"hidden":false,"merged":[[121,3,122,10],[121,17,121,23],[125,1,125,26],[126,1,126,26],[115,1,116,2],[115,3,116,10],[117,3,118,10],[117,17,117,23],[119,3,120,10],[119,17,119,19],[111,1,112,26],[113,3,114,6],[94,14,94,16],[94,21,94,23],[98,3,98,4],[98,11,98,12],[98,18,98,19],[104,3,104,4],[104,11,104,12],[104,18,104,19],[79,2,79,4],[79,7,79,8],[79,11,79,12],[87,11,87,17],[87,18,87,24],[89,7,89,8],[92,1,109,1],[92,2,92,25],[92,26,109,26],[93,6,93,9],[93,14,93,16],[93,21,93,23],[94,6,94,9],[106,3,106,9],[106,12,106,17],[106,19,106,25],[108,7,108,8],[67,1,90,1],[67,2,67,10],[67,11,67,25],[75,2,75,4],[77,2,77,4],[79,18,79,19],[81,2,81,4],[81,7,81,8],[67,26,90,26],[68,6,68,9],[68,12,69,25],[69,6,69,9],[70,14,70,16],[70,21,70,23],[71,14,71,16],[71,21,71,23],[75,7,75,8],[77,7,77,8],[83,2,83,4],[83,7,83,8],[85,2,85,4],[85,7,85,8],[87,2,87,4],[87,7,87,8],[44,1,65,1],[44,2,44,25],[58,2,58,4],[58,7,58,8],[58,11,58,12],[58,18,58,19],[60,2,60,4],[60,7,60,8],[60,11,60,12],[60,18,60,19],[54,2,54,4],[54,7,54,8],[54,11,54,12],[54,18,54,19],[56,2,56,4],[56,7,56,8],[56,11,56,12],[56,18,56,19],[62,2,62,4],[62,7,62,8],[62,11,62,12],[62,18,62,19],[64,7,64,8],[44,26,65,26],[45,6,45,9],[45,14,45,16],[45,21,45,23],[46,6,46,9],[46,14,46,16],[46,21,46,23],[50,2,50,4],[52,2,52,4],[52,7,52,8],[52,11,52,12],[52,18,52,19],[30,9,30,10],[30,11,30,12],[30,16,30,17],[30,18,30,19],[32,9,32,10],[32,11,32,12],[32,16,32,17],[32,18,32,19],[50,7,50,8],[50,11,50,12],[50,18,50,19],[25,4,27,7],[26,9,26,10],[26,11,26,12],[26,16,26,17],[26,18,26,19],[28,4,29,4],[28,9,28,10],[28,11,28,12],[28,16,28,17],[28,18,28,19],[2,9,4,24],[5,9,6,24],[8,19,8,21],[11,15,11,23],[15,4,15,10],[22,9,22,10],[22,12,22,14],[22,21,22,23],[24,9,24,10],[24,11,24,12],[24,16,24,17],[24,18,24,19],[20,2,20,25],[21,9,21,10],[21,12,21,14],[21,19,21,20],[21,21,21,23],[17,10,17,23]]}
[]
[]
[null,null,null,null,null,null,null,null,null,"            FORMULAIRE de MESURES des VOILES "]
[]
[]
[null,null,null,null,null,null,null,null,null," -  2 0 1 6  -"]
[]
[]
[null,null,null,null,null,null,null,null,null,null,null,null,null,null,null,null,null,"N° de Voile :"]
[]
[]
[null,null,null,null,null,null,null,null,null,null,null,null,null,null,"NOM du Bateau : "]
[]
[null,null,null,null,null,null,null,null,null,null,null,null,null,null,null,"1er Certificat"]
[]
[null,null,null,null,"luc.gellusseau@ffvoile.fr",null,null,null,null,null,null,null,null,null,null,"Modifications demandées"]
[null,null,null,null,null,null,null,null,null,null,null,null,null,null,null,0]
[null,null,null,null,null,null,null,null,null,null,"Attention: Les anciennes mesures seront conservées sans instructions contraires"]
[]
[]
[null,null,"Grand - Voiles"]
[null,null,null,null,null,null,null,null,null,"TYPE",null,null,"Matériaux utilisés",null,null,null,null,null,null,"TYPE",null,"Matériaux utilisés"]
[null,null,null,null,null,null,null,null,"Identification :"]
[]
[null,null,null,null,null,null,null,null,null,"(MHB)",null,"Têtière ",null,null,null," m","(MHB)",null,"Têtière ",null,null,null," m"]
[null,null,null,null,"Mesures prises sur les espars:"]
[null,null,null,null,null,null,null,null,null,"(MUW)",null,"7/8 haut",null,null,null," m","(MUW)",null,"7/8 haut",null,null,null," m"]
[]
[null,null,null,null,"Rappel :",null,null,null,null,"(MTW)",null,"3/4 haut",null,null,null," m","(MTW)",null,"3/4 haut",null,null,null," m"]
[]
[null,null,null,null," P =",null,null,"m",null,"(MHW)",null,"Mi-hauteur",null,null,null," m","(MHW)",null,"Mi-hauteur",null,null,null," m"]
[]
[null,null,null,null,"E =",null,null,"m",null,"(MQW)",null,"1/4 bas",null,null,null," m","(MQW)",null,"1/4 bas",null,null,null," m"]
[]
[null,null,null,null,"SPL =",null,null,"m"]
[]
[null,null,null,null,null,null,null,null,null,null,null,null,"Guindant Indicatif =",null,null," m",null,null,null,"Guindant Indicatif =",null,null," m"]
[]
[null,null,null,null,"J =",null,null,"m",null,null,null,null,"Bordure Indicative =",null,null," m",null,null,null,"Bordure Indicative =",null,null," m"]
[]
[null,null,null,null,null,null,null,null,null,null,null,null,null,null,{"$f":"IF(O37>0.997*$G31,\"Guindant est trop grand ou P trop petit\",\"\")","v":""},null,null,null,null,null,null,null,null,{"$f":"IF(V37>0.997*$G31,\"Guindant est trop grand ou P trop petit\",\"\")","v":""}]
[null,null,null,null,null,null,null,null,null,null,null,null,"Surface =",null,{"$f":"IF(OR($G31=\"\",$G33=\"\",O25=\"\",O27=\"\",O29=\"\",O31=\"\",O33=\"\"),\"\",ROUND($G31/8*($G33+2*O33+2*O31+1.5*O29+O27+0.5*O25),2))","v":""}," m²",null,null,null,"Surface =",null,{"$f":"IF(OR($G31=\"\",$G33=\"\",V25=\"\",V27=\"\",V29=\"\",V31=\"\",V33=\"\"),\"\",ROUND($G31/8*($G33+2*V33+2*V31+1.5*V29+V27+0.5*V25),2))","v":""}," m²"]
[]
[]
[null,"VOILES PLATES D'AVANT","Génois / Focs / Code 0",null,null,null,null,null,null,null,null,null,null,null,null,null,null,null,null,null,null,null,null,null,null,null,"VOILES PLATES D'AVANT"]
[null,null,null,null,"TYPE",null,"Matériaux utilisés",null,null,null,null,null,"TYPE",null,"Matériaux utilisés",null,null,null,null,"TYPE",null,"Matériaux utilisés"]
[]
[]
[null,null,null,null,null,null,"Latté?",null,null,null,null,null,null,null,"Latté?",null,null,null,null,null,null,"Latté?"]
[]
[null,null,"Têtière ",null,null,null,null," m",null,"(HHB)",{"$f":"IF(G51=\"\",0.05*G61,G51)","v":0},"Têtière ",null,null,null," m","(HHB)",{"$f":"IF(O51=\"\",0.05*O61,O51)","v":0},"Têtière ",null,null,null," m","(HHB)",{"$f":"IF(V51=\"\",0.05*V61,V51)","v":0}]
[]
[null,null,"7/8 haut",null,null,null,null," m",null,"(HUW)",{"$f":"IF(G53=\"\",0.125*G61+0.875*K51,G53)","v":0},"7/8 haut",null,null,null," m","(HUW)",{"$f":"IF(O53=\"\",0.125*O61+0.875*R51,O53)","v":0},"7/8 haut",null,null,null," m","(HUW)",{"$f":"IF(V53=\"\",0.125*V61+0.875*Y51,V53)","v":0}]
[]
[null,null,"3/4 haut",null,null,null,null," m",null,"(HTW)",{"$f":"IF(G55=\"\",0.25*G61+0.75*K51,G55)","v":0},"3/4 haut",null,null,null," m","(HTW)",{"$f":"IF(O55=\"\",0.25*O61+0.75*R51,O55)","v":0},"3/4 haut",null,null,null," m","(HTW)",{"$f":"IF(V55=\"\",0.25*V61+0.75*Y51,V55)","v":0}]
[]
[null,null,"Mi-hauteur",null,null,null,null," m",null,"(HHW)",{"$f":"IF(G57=\"\",0.5*G61+0.5*K51,G57)","v":0},"Mi-hauteur",null,null,null," m","(HHW)",{"$f":"IF(O57=\"\",0.5*O61+0.5*R51,O57)","v":0},"Mi-hauteur",null,null,null," m","(HHW)",{"$f":"IF(V57=\"\",0.5*V61+0.5*Y51,V57)","v":0}]
[]
[null,null,"1/4 bas",null,null,null,null," m",null,"(HQW)",{"$f":"IF(G59=\"\",0.75*G61+0.25*K51,G59)","v":0},"1/4 bas",null,null,null," m","(HQW)",{"$f":"IF(O59=\"\",0.75*O61+0.25*R51,O59)","v":0},"1/4 bas",null,null,null," m","(HQW)",{"$f":"IF(V59=\"\",0.75*V61+0.25*Y51,V59)","v":0}]
[]
[null,null,"+ Gde Larg",null,null,null,null," m",null,"(HLP)",null,"+ Gde Larg",null,null,null," m","(HLP)",null,"+ Gde Larg",null,null,null," m","(HLP)"]
[]
[null,null,"Guindant",null,null,null,null," m",null,"(HLU)",null,"Guindant",null,null,null," m","(HLU)",null,"Guindant",null,null,null," m","(HLU)"]
[]
[null,null,null,null,"Surface =",null,{"$f":"IF(OR(G61=\"\",G63=\"\"),\"\",ROUND(0.1125*G63*(1.445*G61+2*K59+2*K57+1.5*K55+K53+0.5*K51),2))","v":""}," m²",null,null,null,null,"Surface =",null,{"$f":"IF(OR(O61=\"\",O63=\"\"),\"\",ROUND(0.1125*O63*(1.445*O61+2*R59+2*R57+1.5*R55+R53+0.5*R51),2))","v":""}," m²",null,null,null,"Surface =",null,{"$f":"IF(OR(V61=\"\",V63=\"\"),\"\",ROUND(0.1125*V63*(1.445*V61+2*Y59+2*Y57+1.5*Y55+Y53+0.5*Y51),2))","v":""}," m²"]
[]
[]
[null,"VOILES PLATES D'AVANT","Gennaker",null,null,null,null,null,null,null,null,"Spinnakers  Symétriques",null,null,null,null,null,null,null,null,null,null,null,null,null,null,"VOILES CREUSES D'AVANT"]
[null,null,null,null,null,null,"Matériaux utilisés",null,null,null,null,null,"Un Spinnaker symétrique doit être parfaitement symétrique par rapport à sa médiane de Bordure, en construction et en utilisation de matériau.   "]
[]
[null,null,null,null,null,null,null,null,null,null,null,null,"TYPE",null,"Matériaux utilisés",null,null,null,null,"TYPE",null,"Matériaux utilisés"]
[null,null,null,null,null,"     Guidant Libre ?"]
[null,null,null,null,{"$f":"IF(H79=1,\"* Interdit *\",\"\")","v":""}]
[null,null,null,null,null,null,"   Latté?",null,null,null,null,null,{"$f":"IF(R74=1,\"* Interdit *\",\"\")","v":""},null,"Latté?  ",null,null,null,null,{"$f":"IF(Y74=1,\"* Interdit *\",\"\")","v":""},null,"Latté? "]
[]
[null,null,"Têtière ",null,null,null,null,"m",null,"(HHB)",{"$f":"IF(G76=\"\",0.05*G86,G76)","v":0},null,null,null,"  Symétries respectées?  ",null,null,null,null,null,null,"  Symétries respectées? "]
[]
[null,null,"7/8 haut",null,null,null,null,"m",null,"(HUW)",{"$f":"IF(G78=\"\",0.125*G86+0.875*K76,G78)","v":0},{"$f":"IF(R78=1,\"(**)\",\"\")","v":""},null,null,"     Nerf de Chute ?  ",null,null,null,{"$f":"IF(Y78=1,\"(**)\",\"\")","v":""},null,null,"     Nerf de Chute ? "]
[]
[null,null,"3/4 haut",null,null,null,null,"m",null,"(HTW)",{"$f":"IF(G80=\"\",0.25*G86+0.75*K76,G80)","v":0},"Guindant",null,null,null," m","(SLU)",null,"Guindant",null,null,null,"m","(SLU)"]
[]
[null,null,"Mi-hauteur",null,null,null,null,"m",null,"(HHW)",{"$f":"IF(G82=\"\",0.5*G86+0.5*K76,G82)","v":0},null,"Chute",null,null," m","(SLE)",null,null,"Chute",null,null,"m","(SLE)"]
[]
[null,null,"1/4 bas",null,null,null,null,"m",null,"(HQW)",{"$f":"IF(G84=\"\",0.75*G86+0.25*K76,G84)","v":0},null,"Mi-hauteur",null,null," m","(SHW)",{"$f":"1.8*MAX($G$35,$G$39)","v":0},null,"Mi-hauteur",null,null,"m","(SHW)",{"$f":"1.8*MAX($G$35,$G$39)","v":0}]
[]
[null,null,"+ Gde Larg",null,null,null,null,"m",null,"(HLP)",null,{"$f":"IF(O86=\"\",R86,O86)","v":0},"Bordure",null,null," m","(SFL)",{"$f":"1.8*MAX($G$35,$G$39)","v":0},{"$f":"IF(V86=\"\",Y86,V86)","v":0},"Bordure",null,null,"m","(SFL)",{"$f":"1.8*MAX($G$35,$G$39)","v":0}]
[]
[null,null,"Guindant",null,null,null,null,"m",null,"(HLU)",null,{"$f":"IF(OR(O80=\"\",O84=\"\"),\"\",IF(O84<0.75*O86,\"Ce n'est pas un Spinnaker !!!\",IF(R74=1,\"Ce spinnaker n'est pas conforme\",IF(OR(R76<>1,R78=1,O82<0.96*O80),\"Ce Spinnaker est un Asymétrique.\",\"\"))))","v":""},null,null,null,null,null,null,{"$f":"IF(OR(V80=\"\",V84=\"\"),\"\",IF(V84<0.75*V86,\"Ce n'est pas un Spinnaker !!!\",IF(Y74=1,\"Ce spinnaker n'est pas conforme\",IF(OR(Y76<>1,Y78=1,V82<0.96*V80),\"Ce Spinnaker est un Asymétrique.\",\"\"))))","v":""}]
[]
[null,null,null,null,"Surface =",null,{"$f":"IF(OR(G86=\"\",G88=\"\"),\"\",ROUND(0.1125*G88*(1.445*G86+2*K84+2*K82+1.5*K80+K78+0.5*K76),2))","v":""}," m²",null,null,{"$f":"IF(D88=\"\",0,1)","v":0},null,"Surface =",null,{"$f":"IF(OR(O80=\"\",O82=\"\",O84=\"\",O86=\"\"),\"\",IF(S90=1,\"Erreur\",ROUND((O80+O82)/2*(O86+4*O84)/6,2)))","v":""}," m²",null,{"$f":"IF(S88=\"\",0,1)","v":0},null,"Surface =",null,{"$f":"IF(OR(V80=\"\",V82=\"\",V84=\"\",V86=\"\"),\"\",IF(Z90=1,\"Erreur\",ROUND((V80+V82)/2*(V86+4*V84)/6,2)))","v":""}," m²",null,null,{"$f":"IF(AI82=\"\",0,1)","v":0}]
[]
[null,null,null,null,null,null,null,null,null,null,null,{"$f":"IF(OR(L78=\"(**)\",(S78=\"(**)\")),\"(**) : Les Nerfs de Chute sont interdits dans les Spinnakers Symétriques.\",\"\")","v":""}]
[null,"VOILES CREUSES D'AVANT","Spinnakers  Asymétriques",null,null,null,null,null,null,null,null,null,null,null,null,null,null,null,null,null,null,null,null,null,null,null,"VOILES CREUSES D'AVANT"]
[null,null,null,null,"TYPE",null,"Matériaux utilisés",null,null,null,null,null,"TYPE",null,"Matériaux utilisés",null,null,null,null,"TYPE",null,"Matériaux utilisés"]
[]
[]
[null,null,null,null,{"$f":"IF(I98=1,\"* Interdit *\",\"\")","v":""},null,"  Latté?",null,null,null,null,null,{"$f":"IF(P98=1,\"* Interdit *\",\"\")","v":""},null,"  Latté?",1,null,null,null,{"$f":"IF(X98=1,\"* Interdit *\",\"\")","v":""},null,"  Latté?"]
[]
[null,null,null,"Guindant",null,null,null,"m",null,"(SLU)",null,"Guindant",null,null,null,"m","(SLU)",null,"Guindant",null,null,null,"m","(SLU)"]
[]
[null,null,null,null,"Chute",null,null,"m",null,"(SLE)",null,null,"Chute",null,null,"m","(SLE)",null,null,"Chute",null,null,"m","(SLE)"]
[]
[null,null,null,null,"Mi-hauteur",null,null,"m",null,"(SHW)",null,null,"Mi-hauteur",null,null,"m","(SHW)",null,null,"Mi-hauteur",null,null,"m","(SHW)"]
[]
[null,null,null,"Bordure",null,null,null,"m",null,"(SFL)",null,"Bordure",null,null,null,"m","(SFL)",null,"Bordure",null,null,null,"m","(SFL)"]
[]
[null,null,null,{"$f":"IF(G103=\"\",\"\",IF(G103<0.75*G105,\"Ce n'est pas un Spinnaker !!!\",IF(I98=1,\"Ce Spinnaker n'est pas conforme.\",\"\")))","v":""},null,null,null,null,null,null,null,null,{"$f":"IF(O103=\"\",\"\",IF(O103<0.75*O105,\"Ce n'est pas un Spinnaker !!!\",IF(P98=1,\"Ce Spinnaker n'est pas conforme.\",\"\")))","v":""},null,null,null,null,null,null,{"$f":"IF(V103=\"\",\"\",IF(V103<0.75*V105,\"Ce n'est pas un Spinnaker !!!\",IF(W98=1,\"Ce Spinnaker n'est pas conforme.\",\"\")))","v":""}]
[]
[null,null,null,null,"Surface =",null,{"$f":"IF(OR(G99=\"\",G101=\"\",G103=\"\",G105=\"\"),\"\",IF(K109=1,\"Erreur\",ROUND((G99+G101)/2*(G105+4*G103)/6,2)))","v":""}," m²",null,null,{"$f":"IF(D107=\"\",0,1)","v":0},null,"Surface =",null,{"$f":"IF(OR(O99=\"\",O101=\"\",O103=\"\",O105=\"\"),\"\",IF(S109=1,\"Erreur\",ROUND((O99+O101)/2*(O105+4*O103)/6,2)))","v":""}," m²",null,{"$f":"IF(L107=\"\",0,1)","v":0},null,"Surface =",null,{"$f":"IF(OR(V99=\"\",V101=\"\",V103=\"\",V105=\"\"),\"\",IF(Z109=1,\"Erreur\",ROUND((V99+V101)/2*(V105+4*V103)/6,2)))","v":""}," m²",null,{"$f":"IF(T107=\"\",0,1)","v":0}]
[]
[]
[null,"Je certifie l'exactitude de mes déclarations et m'engage à signaler toute erreur ou toute modification ultérieure au Centre de Calcul FFVoile."]
[]
[null,null,null,"COMMENTAIRES :"]
[]
[null,null,null,null,null,null,null,null,null,null,null,null,"Posséder vous des voiles en Mylar, Kevlar, 3DL, etc…?",null,null,null,null,null,null,null,null,null,null,null,null,1]
[]
[null,null,null,null,null,null,null,null,null,null,null,null,null,null,null,null,"Fait à :"]
[]
[null,null,null,null,null,null,null,null,null,null,null,null,null,null,null,null,"Le :"]
[]
[null,null,null,null,null,null,null,null,null,null,null,null,null,null,null,null,"Le Déclarant :",null,null,null,null,null,null,null,null,null,2]
[null,null,null,null,null,null,null,null,null,null,null,null,null,null,"     ( Le propriétaire ) ou son représentant"]
[]
[]
[null,"Pour connaitre les définitions de l'équipement, les points de mesure et mesures des voiles et du gréement, se reporter sur:"]
[null,"http://www.ffvoile.fr/ffv/web/services/arbitrage/documents/ERS_2013-2016.pdf"]

{"sheet":"LEXIQUE 2016","index":3,"n_rows":36,"n_cols":3,"rows_kept":36,"cut":false,"hidden":false,"merged":[]}
[null,null,"                                  Lexique 2016"]
[null,"DESIGNATIONS 2016","DEFINITIONS"]
[null,"LOA","Longueur de coque"]
[null,"IG","Hauteur de l'étai (Par rapport au livet de référence)"]
[null,"ISP","Hauteur de la drisse de spinnaker (Par rapport au livet de référence)"]
[null,"J","Base du triangle avant (Distance horizontale entre la face avant du mat et l'axe de l’étai au niveau du pont"]
[null,"FSJ","Distance horizontale entre l’extrémité avant de LOA et celle de J"]
[null,"P","Distance relevée sur le mat entre la marque limite inférieure et la marque limite supérieure d’établissement du guindant de la grand-voile"]
[null,"E","Distance relevée sur la bôme entre le bord arrière du mat et la marque extérieure de la bôme"]
[null,"BAS","Distance entre le point inférieur de la mesure de P et le livet de référence"]
[null,"MHB","Têtière d’une grand-voile (GV)"]
[null,"MUW","Largeur supérieure de GV au 7/8 de chute"]
[null,"MTW","Largeur haute de GV au 3/4 de chute"]
[null,"MHW","Largeur milieu de GV au 1/2 de chute"]
[null,"MQW","Largeur inférieure  de GV au 1/4 de chute"]
[null,"HLU","Guindant d’une voile d’avant (Foc, Génois, Code 0 ou Gennaker)"]
[null,"HHB","Têtière d’une voile d’avant (Foc, Génois, Code 0 ou Gennaker)"]
[null,"HUW","Largeur supérieure d’une voile d’avant au 7/8 de hauteur de la chute"]
[null,"HTW","Largeur haute d’une voile d’avant au 3/4 de hauteur de la chute"]
[null,"HHW","Largeur milieu d’une voile d’avant au 1/2 de hauteur de la chute"]
[null,"HQW","Largeur inférieure  d’une voile d’avant au 1/4 de hauteur de la chute"]
[null,"HLP","Plus grande perpendiculaire mesurée entre le point d’écoute et le guindant d’une voile d’avant                                      (Foc, Génois, Code 0 ou Gennaker)"]
[null,"HMW","Largeur à mi-hauteur d’une voile d’avant (Foc, Génois, Code 0 ou Gennaker)                                                                                (Distance entre le milieu du guindant et le milieu de la chute)"]
[null,"SLU","Guindant de spi symétrique"]
[null,"SLE","Chute de spi symétrique"]
[null,"SHW","Largeur à mi-hauteur du spi symétrique                                                                                                                                                          (Distance entre le milieu du guindant et le milieu de la chute)"]
[null,"SFL","Bordure du spi symétrique"]
[null,"ALU (SLU)","Guindant du spi asymétrique"]
[null,"ALE (SLE)","Chute du spi asymétrique"]
[null,"AMG (SHW)","Largeur à mi-hauteur du spi asymétrique                                                                                                                                                          (Distance entre le milieu du guindant et le milieu de la chute)"]
[null,"ASF (SFL)","Bordure du spi asymétrique"]
[null,"SPL","Longueur hors tout du tangon fixé horizontalement sur sa ferrure, mesuré en extension"]
[null,"TPS","Distance horizontale entre la face avant du mat et la fixation de la voile à l’extrémité extérieure du bout-dehors"]
[null,"FSP","2 fois le diamètre de l'enrouleur et/ou 2 fois la largeur de l'étai creux"]
[null,"Voile d'avant                            ---> Gennaker","Une voile d'avant est un Gennaker quand sa largeur à mi-hauteur (MHW) est supérieure à 55% de sa bordure"]
[null,"Voile d'avant / Gennaker       ---> Spinnaker","Une voile d'avant ou un Gennaker est un Spinnaker quand sa largeur à mi-hauteur (SHW) est supérieure ou égale à 75% de sa bordure (SFL)"]

{"sheet":"Auxiliaries","index":4,"n_rows":126,"n_cols":6,"rows_kept":126,"cut":false,"hidden":true,"merged":[[1,4,1,5]]}
[]
[null,"P1-AA30","Partic",null,"Revalidation 2016"]
[null,null,"Standard",null,"CLUB","INTER"]
[null,null,"GTE",null,43,65]
[null,null,"PTE",null,51,81]
[null,null,"Croisière",null,66,105]
[null,null,"Racing",null,90,143]
[null,null,"\"Q\"",null,122,194]
[null,null,"\"DL\""]
[null,null,"\"DI\""]
[]
[]
[]
[null,"P1E47","Boutdehors"]
[null,null,"Pas de Bord-Dehors"]
[null,null,"Fixe dans l'axe"]
[null,null,"Coulissant"]
[null,null,"Orientable"]
[]
[]
[]
[null,"P1E49","Etaiavant"]
[null,null,"Simple"]
[null,null,"Etai creux"]
[null,null,"Emmaganiseur"]
[null,null,"Enrouleur"]
[]
[]
[]
[null,"P1Q47","Haubans"]
[null,null,"Cable"]
[null,null,"Rod Circulaire"]
[null,null,"Rod Lenticulaire"]
[null,null,"Fibres"]
[]
[]
[]
[null,"P1E49","Drissespi"]
[null,null,"1 Capelage"]
[null,null,"1 En Tête"]
[null,null,"1 Intermédiaire"]
[null,null,"x2 (Capelage + Tête)"]
[]
[]
[]
[null,"P2G45","Spin"]
[null,null,"Symétriques uniquement"]
[null,null,"Asymétriques sur étrave uniquement"]
[null,null,"Asymétriques sur Bout-Dehors Fixe uniquement"]
[null,null,"Asymétriques sur Bout-Dehors orientable"]
[null,null,"Symétriques et Asymétriques sur tangon"]
[null,null,"Pas de Spinnaker à Bord"]
[]
[]
[]
[]
[null,"J23","GdVoile"]
[null,"T23","Lourde"]
[null,null,"Médium"]
[null,null,"Légère"]
[null,null,"Croisière"]
[null,null,"Course"]
[]
[]
[null,"E47","Genois"]
[null,"M47","Lourd"]
[null,"T47","Médium"]
[null,"M72","Léger"]
[null,"T72","Croisière"]
[null,null,"Course"]
[null,null,"Code 0"]
[]
[]
[null,"E70","Spinnaker"]
[null,null,"Lourd"]
[null,null,"Médium"]
[null,null,"Léger"]
[null,null,"Croisière"]
[null,null,"Course"]
[]
[]
[]
[null,"M27","TissuGVGenois"]
[null,"V27","Inconnu"]
[null,"G47","Dacron - PET"]
[null,"O47","Pentex-  PEN"]
[null,"V47","Spectra - HMPE"]
[null,null,"Dyneema - HMPE"]
[null,null,"Certran - HMPE"]
[null,null,"Kevla - PPTA"]
[null,null,"Twaron - PPTA"]
[null,null,"Technora - PPTA"]
[null,null,"Zylon - PBO"]
[null,null,"Vectran -LCP"]
[null,null,"Carbone"]
[null,null,"MYLAR - PET Film"]
[null,null,"MELINEX - PET Film"]
[null,null,"Nylon"]
[null,null,"Polyester"]
[null,null,"Autres"]
[]
[]
[null,"G70","TissuGennaker"]
[null,null,"Inconnu"]
[null,null,"Nylon"]
[null,null,"Polyester"]
[null,null,"Autres"]
[]
[]
[]
[]
[]
[]
[]
[]
[]
[]
[]
[]
[]
[]
[null,"O72","TissuSpinnaker"]
[null,"V72","Inconnu"]
[null,"G95","Nylon"]
[null,"O98","Polyester"]
[null,"V95","Autres"]